bitfinex-derivatives/quotes_ETHF0:USTF0_20210402
["timestamp","ask_amount","ask_price","bid_price","bid_amount"]
[1617399223745,19.19605,2086.0,2085.5,5.04862171]
[1617399223945,78.951,2085.7,2085.5,5.04862171]
[1617399224345,81.85795,2085.7,2085.6,2.90695]
[1617399224846,81.85795,2085.7,2085.4,5.04890507]
[1617399225648,81.85795,2085.7,2085.3,5.04923784]
[1617399226249,2.90695,2085.4,2085.3,5.04923784]
[1617399226450,4.24305,2085.4,2085.3,5.04923784]
[1617399226853,4.24305,2085.4,2085.1,5.04957176]
[1617399227851,4.24305,2085.4,2085.0,5.04989878]
[1617399228253,2.90695,2085.1,2085.0,7.95684878]
[1617399228753,2.90695,2085.1,2085.0,8.16330662]
[1617399230756,2.90695,2085.1,2085.0,2.90695]
[1617399231256,2.90695,2085.1,2084.7,55.555]
[1617399231858,2.90695,2085.1,2084.8,0.2058039]
[1617399232058,2.90695,2085.1,2084.6,2.571]
[1617399232458,2.90695,2085.1,2084.9,2.90695]
[1617399232459,66.8373,2085.1,2084.9,2.90695]
[1617399234460,2.90695,2085.0,2084.9,2.90695]
[1617399239368,2.90695,2085.0,2084.6,2.571]
[1617399240571,4.79095,2084.7,2084.6,2.571]
[1617399242974,4.79095,2084.7,2084.5,2.90695]
[1617399247483,34.79095,2084.7,2084.5,2.90695]
[1617399248885,55.0111,2084.4,2083.6,2.90695]
[1617399249083,85.0111,2084.4,2083.6,2.90695]
[1617399250085,85.0111,2084.4,2083.5,2.571]
[1617399250486,87.0111,2084.4,2083.5,2.571]
[1617399250686,32.0,2084.4,2083.5,2.571]
[1617399250886,2.90695,2083.6,2083.2,2.90695]
[1617399251086,32.90695,2083.6,2083.2,2.90695]
[1617399252989,2.90695,2083.3,2083.2,2.90695]
[1617399253191,32.90695,2083.3,2083.2,2.90695]
[1617399255491,32.90695,2083.3,2082.2,5.0205371]
[1617399255691,55.0218,2082.6,2082.2,5.0205371]
[1617399255892,55.0218,2082.6,2082.1,7.59185204]
[1617399256091,55.0218,2082.6,2082.3,0.20848831]
[1617399256292,55.0218,2082.6,2082.2,0.20860813]
[1617399256692,55.0218,2082.6,2082.1,2.571]
[1617399256896,57.92875,2082.6,2082.5,2.90695]
[1617399257695,57.92875,2082.6,2082.5,3.11603424]
[1617399258696,57.92875,2082.6,2082.5,2.90695]
[1617399261600,57.92875,2082.6,2081.9,63.7947]
[1617399261801,2.90695,2082.6,2081.3,7.669]
[1617399262201,63.2172,2081.9,2081.3,7.669]
[1617399263202,63.2172,2081.9,2081.8,2.90695]
[1617399265003,1.3001,2082.0,2081.8,2.90695]
[1617399265201,2.90695,2081.9,2081.8,2.90695]
[1617399265402,2.90695,2081.9,2081.6,55.2227]
[1617399265403,32.90695,2081.9,2080.7,2.571]
[1617399265603,79.5977,2081.6,2080.7,2.571]
[1617399265802,79.6179,2081.0,2080.7,2.571]
[1617399266203,81.4982,2081.0,2080.7,2.571]
[1617399266604,1.8803,2081.0,2080.7,2.571]
[1617399266803,1.8803,2081.0,2080.8,79.7096]
[1617399267207,1.8803,2081.0,2080.9,2.90695]
[1617399268512,2.90695,2081.6,2080.9,2.90695]
[1617399269114,2.90695,2081.6,2080.8,79.7096]
[1617399269314,2.90695,2081.6,2081.5,2.90695]
[1617399276824,2.90695,2081.6,2080.8,79.7096]
[1617399277225,2.90695,2080.9,2080.8,79.7096]
[1617399277426,2.90695,2080.9,2080.7,5.47795]
[1617399280630,4.73005,2080.9,2080.7,5.47795]
[1617399280829,4.73005,2080.9,2080.7,2.571]
[1617399281031,4.73005,2080.9,2080.5,0.9605]
[1617399281232,2.90695,2080.6,2080.5,2.90695]
[1617399282231,2.90695,2080.6,2080.5,3.85745]
[1617399288138,69.83495,2080.6,2080.5,3.85745]
[1617399295046,2.90695,2080.6,2080.5,3.85745]
[1617399302555,2.90695,2080.6,2080.5,2.90695]
[1617399303759,56.0933,2081.1,2080.5,3.86985]
[1617399305662,30.0,2082.0,2081.0,2.90695]
[1617399305863,71.8006,2081.7,2081.0,5.78815]
[1617399306664,71.8006,2081.7,2081.0,4.83805]
[1617399307365,71.8006,2081.7,2081.1,0.2120505]
[1617399307564,71.8006,2081.7,2081.6,2.90695]
[1617399307765,32.0,2082.5,2081.6,4.62375]
[1617399307967,32.0,2082.5,2081.6,4.83578296]
[1617399308265,32.0,2082.5,2081.6,4.62375]
[1617399308666,32.0,2082.5,2081.7,75.38222592]
[1617399309066,32.0,2082.5,2081.7,75.1702]
[1617399309466,2.0,2082.5,2081.7,75.1702]
[1617399309666,30.0,2082.7,2081.9,2.90695]
[1617399309667,2.0,2082.7,2081.9,2.90695]
[1617399309865,64.5087,2082.8,2081.9,2.90695]
[1617399310066,30.0,2083.4,2081.9,3.86125]
[1617399310266,30.0,2083.4,2082.3,57.2854]
[1617399310467,30.0,2083.4,2082.3,58.9842]
[1617399311567,2.90695,2082.4,2082.3,58.9842]
[1617399312367,2.90695,2082.4,2082.3,59.19575926]
[1617399313170,30.0,2083.5,2082.3,59.19575926]
[1617399313571,30.0,2083.5,2082.6,2.90695]
[1617399315571,2.90695,2082.7,2082.6,2.90695]
[1617399317473,57.3026,2083.7,2082.6,3.87545]
[1617399317673,2.0,2084.1,2083.1,2.90695]
[1617399317873,2.0,2084.1,2083.1,78.78835]
[1617399319576,2.90695,2083.2,2083.1,78.78835]
[1617399319977,2.90695,2083.2,2083.1,77.52665]
[1617399320177,2.90695,2083.2,2083.1,74.6197]
[1617399321780,2.90695,2083.2,2083.1,77.52665]
[1617399327186,2.90695,2083.2,2083.1,77.7380669]
[1617399327385,2.90695,2083.2,2083.1,77.52665]
[1617399328385,2.90695,2083.2,2083.1,77.73842194]
[1617399328984,2.90695,2083.2,2083.1,77.52665]
[1617399333093,2.90695,2083.2,2083.1,2.90695]
[1617399339902,2.51615,2083.2,2083.1,2.90695]
[1617399340901,1.03615,2083.2,2083.1,2.90695]
[1617399341302,4.72865,2083.9,2083.1,2.90695]
[1617399341703,4.72865,2083.9,2083.4,93.6822]
[1617399341902,4.72865,2083.9,2083.4,0.9707]
[1617399342104,4.72865,2083.9,2083.5,2.90695]
[1617399342307,4.72865,2083.9,2083.5,4.30765]
[1617399343507,4.72865,2083.9,2083.5,2.90695]
[1617399344110,2.90695,2083.6,2083.5,2.90695]
[1617399344914,2.46835,2083.6,2083.5,2.90695]
[1617399346216,2.41345,2083.6,2083.5,2.90695]
[1617399347818,1.88135,2083.6,2083.5,2.90695]
[1617399349423,4.7189,2083.9,2083.5,2.90695]
[1617399349622,2.9564,2083.9,2083.5,4.31835]
[1617399350225,2.9564,2083.9,2083.8,2.90695]
[1617399350423,1.9937,2083.9,2083.8,2.90695]
[1617399351224,1.9304,2083.9,2083.8,2.90695]
[1617399351424,1.9304,2083.9,2083.8,3.86605]
[1617399352326,1.5791,2083.9,2083.8,3.86605]
[1617399353329,0.9663,2083.9,2083.8,3.86605]
[1617399358236,0.9663,2083.9,2083.8,98.24695]
[1617399358433,0.9663,2083.9,2083.8,3.86605]
[1617399366342,78.4347,2084.8,2083.8,3.86605]
[1617399367845,78.4347,2084.8,2084.7,76.8283]
[1617399368246,78.4347,2084.8,2084.7,79.73525]
[1617399389272,78.4347,2084.8,2084.7,79.94646568]
[1617399400281,2.90695,2085.2,2084.7,3.11816568]
[1617399400682,2.90695,2085.2,2085.1,2.90695]
[1617399401283,2.90695,2085.2,2085.1,3.11943855]
[1617399403285,59.0259,2086.4,2085.2,56.8861]
[1617399403885,59.0259,2086.4,2085.3,0.21247961]
[1617399404786,59.0259,2086.4,2085.8,2.90695]
[1617399405386,30.0,2087.3,2085.8,2.90695]
[1617399405688,2.0,2087.2,2085.8,2.90695]
[1617399405887,32.0,2087.2,2085.8,2.90695]
[1617399406688,12.73715,2086.0,2085.8,2.90695]
[1617399411595,12.73715,2086.0,2085.9,0.21222772]
[1617399415300,12.73715,2086.0,2085.9,69.55082772]
[1617399416904,12.73715,2086.0,2085.9,69.3386]
[1617399421607,12.73715,2086.0,2085.9,69.55103022]
[1617399423407,32.0,2087.4,2085.9,69.55103022]
[1617399423607,32.0,2087.4,2085.9,0.21243022]
[1617399423807,32.0,2087.4,2086.9,60.0259]
[1617399424912,2.90695,2087.0,2086.9,62.93285]
[1617399456254,2.90695,2087.0,2086.9,2.90695]
[1617399460759,2.90695,2087.0,2086.9,3.1162685]
[1617399462661,2.90695,2087.0,2086.9,2.90695]
[1617399463062,2.90695,2087.0,2086.9,3.11610463]
[1617399465166,13.0,2088.4,2086.9,3.11610463]
[1617399465366,13.0,2088.4,2088.0,61.4683]
[1617399467067,2.90695,2088.1,2088.0,61.4683]
[1617399470669,2.90695,2088.1,2088.0,51.4683]
[1617399471272,13.0,2088.4,2088.0,51.4683]
[1617399473171,13.0,2088.4,2088.3,2.90695]
[1617399475174,13.9525,2088.4,2088.3,2.90695]
[1617399475374,13.0,2088.4,2088.3,2.90695]
[1617399500802,26.0,2088.4,2088.3,2.90695]
[1617399505606,26.9574,2088.4,2088.3,2.90695]
[1617399507012,26.0,2088.4,2088.3,2.90695]
[1617399510817,26.0,2088.4,2087.4,53.703]
[1617399511417,26.0,2088.4,2087.8,2.90695]
[1617399513218,26.0,2088.4,2087.9,0.20842426]
[1617399513419,26.0,2088.4,2088.3,2.90695]
[1617399517622,26.9681,2088.4,2088.3,2.90695]
[1617399518424,26.0,2088.4,2088.3,2.90695]
[1617399523035,27.5105,2088.4,2088.3,2.90695]
[1617399530837,28.4812,2088.4,2088.3,2.90695]
[1617399531238,27.5105,2088.4,2088.3,2.90695]
[1617399531439,26.0,2088.4,2088.3,3.11555613]
[1617399536147,26.0,2088.4,2088.3,2.90695]
[1617399537246,26.9494,2088.4,2088.3,3.11525024]
[1617399537447,26.0,2088.4,2088.3,3.11525024]
[1617399538448,26.9466,2088.4,2088.3,3.11525024]
[1617399538949,26.0,2088.4,2088.3,3.11525024]
[1617399555270,26.0,2088.4,2088.3,8.15130831]
[1617399557270,26.0,2088.4,2088.3,62.93760831]
[1617399557669,26.0,2088.4,2088.3,57.90155024]
[1617399559474,26.0,2088.4,2088.3,64.05644444]
[1617399559974,26.0,2088.4,2088.3,57.90155024]
[1617399562473,26.0,2088.4,2088.3,64.05626368]
[1617399564276,26.0,2088.4,2088.3,57.90155024]
[1617399574386,26.0,2088.4,2088.3,3.11525024]
[1617399576486,26.0,2088.4,2088.3,9.27038129]
[1617399577389,26.0,2088.4,2088.3,3.11525024]
[1617399581691,26.0,2088.4,2088.3,9.2703553]
[1617399585894,26.0,2088.4,2088.3,71.0718553]
[1617399587697,26.0,2088.4,2088.3,64.91675024]
[1617399587997,26.0,2088.4,2088.3,71.07084094]
[1617399592504,26.0,2088.4,2088.3,9.26934094]
[1617399596308,26.0,2088.4,2088.3,3.11525024]
[1617399597311,26.0,2088.4,2088.3,9.26893515]
[1617399599812,26.0,2088.4,2088.3,3.11525024]
[1617399603315,26.0,2088.4,2088.3,9.27459395]
[1617399608722,89.4532,2088.4,2088.3,3.11525024]
[1617399609322,90.4243,2088.4,2088.3,0.20830024]
[1617399609525,90.4243,2088.4,2088.3,5.24843729]
[1617399609723,120.4243,2088.4,2088.3,0.20830024]
[1617399610723,120.4243,2088.4,2088.2,0.20775808]
[1617399610923,119.4532,2088.4,2088.2,0.20775808]
[1617399611325,56.0,2088.4,2088.2,0.20775808]
[1617399611523,56.0,2088.4,2088.1,0.20813134]
[1617399611925,56.0,2088.4,2087.9,0.20814997]
[1617399612128,4.73745,2088.0,2087.9,0.20814997]
[1617399612330,4.73745,2088.0,2087.8,0.2072347]
[1617399612529,4.73745,2088.0,2087.6,5.24400621]
[1617399612729,4.73745,2088.0,2087.6,0.20725589]
[1617399612929,4.73745,2088.0,2087.5,5.03704913]
[1617399613130,79.5474,2087.6,2087.4,5.03724567]
[1617399613532,79.5474,2087.6,2087.5,0.20742263]
[1617399613731,79.5474,2087.6,2087.4,0.20743626]
[1617399614133,4.65055,2087.5,2087.3,5.03738214]
[1617399614333,4.65055,2087.5,2087.4,0.20744171]
[1617399614936,4.65055,2087.5,2087.2,5.03883487]
[1617399615335,79.35045,2087.5,2087.3,5.24616298]
[1617399615736,79.35045,2087.5,2087.2,5.03893207]
[1617399615937,4.65055,2087.5,2087.2,5.03893207]
[1617399616137,2.0,2087.4,2087.2,5.03893207]
[1617399616338,70.3136,2087.2,2087.1,7.94603652]
[1617399616537,71.2761,2087.2,2087.1,7.94603652]
[1617399616738,71.2761,2087.2,2087.1,8.15365279]
[1617399617139,70.3136,2087.2,2087.1,3.11456627]
[1617399617541,100.3136,2087.2,2087.1,3.11456627]
[1617399618141,103.22055,2087.2,2087.1,0.20761627]
[1617399618740,103.22055,2087.2,2086.9,5.03957858]
[1617399619341,103.22055,2087.2,2087.0,0.20799499]
[1617399619744,103.22055,2087.2,2086.9,0.20801959]
[1617399620343,103.22055,2087.2,2086.7,2.90695]
[1617399620344,103.22055,2087.2,2086.7,5.04009966]
[1617399620545,105.22055,2087.2,2086.7,5.04009966]
[1617399620744,105.22055,2087.2,2086.6,5.04023575]
[1617399621344,105.22055,2087.2,2086.6,1.59502263]
[1617399621543,105.22055,2087.2,2086.4,6.16028813]
[1617399621744,105.22055,2087.2,2086.1,6.16116045]
[1617399621944,34.90695,2087.2,2086.1,6.16116045]
[1617399622144,34.90695,2087.2,2086.0,6.16185004]
[1617399622145,2.90695,2086.2,2086.0,6.16185004]
[1617399622345,31.6689,2086.1,2086.0,6.16185004]
[1617399622546,31.6689,2086.1,2085.9,6.1619802]
[1617399623044,31.6689,2086.1,2085.9,4.1722802]
[1617399623245,31.6689,2086.1,2085.6,2.90695]
[1617399623445,32.6298,2086.1,2085.6,2.90695]
[1617399624247,32.6298,2086.1,2085.1,59.0985]
[1617399624546,31.6689,2086.1,2085.1,59.0985]
[1617399625256,1.6689,2086.1,2085.1,59.0985]
[1617399625453,30.0,2086.0,2084.2,2.571]
[1617399626149,30.0,2086.0,2085.6,2.90695]
[1617399626351,99.1796,2086.0,2085.6,2.90695]
[1617399628254,2.90695,2085.7,2085.6,2.90695]
[1617399637865,3.85645,2085.7,2085.6,2.90695]
[1617399639369,2.90695,2085.7,2085.6,2.90695]
[1617399641271,0.954,2086.4,2085.6,4.83685]
[1617399641471,101.5552,2086.8,2085.7,72.589]
[1617399642272,101.5552,2086.8,2086.3,2.90695]
[1617399644275,2.90695,2086.4,2086.3,2.90695]
[1617399644473,2.90695,2086.4,2086.3,4.42705]
[1617399644676,71.5552,2086.8,2086.3,4.42705]
[1617399645087,30.0,2086.7,2086.3,4.42705]
[1617399645479,67.6571,2086.3,2085.0,2.571]
[1617399646478,70.56405,2086.3,2086.2,2.90695]
[1617399647276,2.90695,2086.3,2086.2,2.90695]
[1617399647876,2.90695,2086.3,2086.2,60.40605]
[1617399651485,2.90695,2086.3,2086.2,2.90695]
[1617399653387,63.6485,2086.5,2086.2,2.90695]
[1617399654489,66.55545,2086.5,2086.2,2.90695]
[1617399655992,63.6485,2086.5,2086.2,2.90695]
[1617399657692,2.90695,2086.8,2086.2,2.90695]
[1617399657894,2.90695,2086.8,2086.3,60.0774]
[1617399658496,2.90695,2086.8,2086.7,2.90695]
[1617399658694,2.90695,2086.8,2086.7,4.49275]
[1617399658896,68.5796,2087.2,2086.7,4.49275]
[1617399659094,32.0,2087.8,2086.7,4.49275]
[1617399659294,32.0,2087.8,2087.0,53.7918]
[1617399660495,32.0,2087.8,2087.4,2.90695]
[1617399660696,32.0,2087.8,2087.4,4.34615]
[1617399661097,2.0,2087.8,2087.4,4.34615]
[1617399661498,2.0,2088.0,2087.4,4.34615]
[1617399661898,78.7488,2088.1,2087.4,4.34615]
[1617399662500,30.0,2088.3,2087.8,2.90695]
[1617399663303,74.1614,2088.0,2087.8,2.90695]
[1617399664502,2.90695,2087.9,2087.8,2.90695]
[1617399665807,74.1614,2088.0,2087.8,2.90695]
[1617399666708,77.06835,2088.0,2087.8,2.90695]
[1617399668313,2.90695,2088.0,2087.8,2.90695]
[1617399668514,26.0,2088.4,2087.8,2.90695]
[1617399668713,26.0,2088.4,2088.1,69.3064]
[1617399670523,26.0,2088.4,2088.3,2.90695]
[1617399672520,28.90695,2088.4,2088.3,2.90695]
[1617399716289,28.90695,2088.4,2088.3,3.10948975]
[1617399729501,26.0,2088.4,2088.3,3.10948975]
[1617399737310,26.0,2088.4,2088.3,83.07978975]
[1617399742222,26.0,2088.4,2088.3,3.10948975]
[1617399742421,104.8154,2088.4,2088.3,3.10948975]
[1617399745923,26.0,2088.4,2088.3,3.10948975]
[1617399750032,26.0,2088.4,2088.3,9.26404976]
[1617399750630,26.0,2088.4,2088.3,3.10948975]
[1617399752434,26.0,2088.4,2088.3,9.26278002]
[1617399752836,26.0,2088.4,2088.3,3.10948975]
[1617399755237,26.0,2088.4,2088.3,9.262766]
[1617399757140,25.98,2088.4,2088.3,9.262766]
[1617399759943,25.98,2088.4,2088.3,3.10948975]
[1617399760542,25.98,2088.4,2088.3,2.90695]
[1617399760743,25.98,2088.4,2088.3,3.10619999]
[1617399774159,25.98,2088.4,2088.3,2.90695]
[1617399774358,25.98,2088.4,2088.3,3.10589986]
[1617399792184,25.7372,2088.4,2088.3,3.10589986]
[1617399792386,25.7372,2088.4,2088.3,11.50302989]
[1617399792785,25.7372,2088.4,2088.3,3.10589986]
[1617399792986,24.7713,2088.4,2088.3,3.10589986]
[1617399793185,24.6896,2088.4,2088.3,3.10589986]
[1617399793585,24.4908,2088.4,2088.3,3.10589986]
[1617399794389,24.3668,2088.4,2088.3,3.10589986]
[1617399794790,24.274,2088.4,2088.3,3.10589986]
[1617399795389,23.8693,2088.4,2088.3,3.10589986]
[1617399795990,23.8693,2088.4,2088.3,11.48967348]
[1617399796189,23.1551,2088.4,2088.3,11.48967348]
[1617399796589,22.093,2088.4,2088.3,11.48967348]
[1617399796990,21.853,2088.4,2088.3,11.48967348]
[1617399797190,21.853,2088.4,2088.3,3.10589986]
[1617399797389,21.7689,2088.4,2088.3,3.10589986]
[1617399797790,21.4082,2088.4,2088.3,3.10589986]
[1617399798192,21.3246,2088.4,2088.3,3.10589986]
[1617399799795,18.6925,2088.4,2088.3,3.10589986]
[1617399799994,17.7525,2088.4,2088.3,3.10589986]
[1617399800396,15.88,2088.4,2088.3,12.60552614]
[1617399800596,15.2015,2088.4,2088.3,12.60552614]
[1617399800798,14.9715,2088.4,2088.3,12.60552614]
[1617399801196,14.9715,2088.4,2088.3,13.70552614]
[1617399801397,14.7909,2088.4,2088.3,13.70552614]
[1617399801597,11.7089,2088.4,2088.3,13.70552614]
[1617399801799,11.7089,2088.4,2088.3,4.20589986]
[1617399803299,11.4689,2088.4,2088.3,4.20589986]
[1617399803900,10.2889,2088.4,2088.3,4.20589986]
[1617399804101,10.0489,2088.4,2088.3,4.20589986]
[1617399805101,9.4764,2088.4,2088.3,4.20589986]
[1617399805502,8.5685,2088.4,2088.3,4.20589986]
[1617399806703,76.7627,2090.4,2088.3,4.20589986]
[1617399806901,2.90695,2090.6,2088.3,4.20589986]
[1617399807102,2.90695,2090.6,2090.4,71.8844]
[1617399807502,2.90695,2090.6,2090.5,2.90695]
[1617399814909,30.0,2092.6,2091.6,77.1174]
[1617399815110,2.0,2092.3,2090.5,2.90695]
[1617399815309,2.0,2092.3,2091.7,77.1174]
[1617399815508,2.90695,2091.8,2091.7,77.1174]
[1617399827821,2.90695,2091.8,2091.7,80.02435]
[1617399837539,2.90695,2091.8,2091.7,2.90695]
[1617399838543,4.90695,2091.8,2091.7,2.90695]
[1617399839341,34.90695,2091.8,2090.9,79.7095]
[1617399839544,36.45385,2091.8,2090.9,79.7095]
[1617399839941,36.45385,2091.8,2091.2,2.90695]
[1617399839942,33.5469,2091.8,2091.2,2.90695]
[1617399840742,95.938,2091.8,2091.2,2.90695]
[1617399841343,65.938,2091.8,2091.2,2.90695]
[1617399841745,2.0,2091.8,2091.2,2.90695]
[1617399841943,4.90695,2091.8,2091.5,2.90695]
[1617399844146,2.90695,2091.8,2091.5,2.90695]
[1617399846848,2.90695,2091.8,2091.5,4.69945]
[1617399854758,12.0,2091.7,2091.5,4.69945]
[1617399860366,12.0,2091.7,2091.6,72.6842]
[1617399860764,12.0,2091.7,2091.5,4.69945]
[1617399867174,12.0,2091.7,2091.6,0.19623658]
[1617399885194,12.0,2091.7,2091.5,2.90695]
[1617399885996,14.90695,2091.7,2091.5,2.90695]
[1617399886796,44.90695,2091.7,2091.5,2.90695]
[1617399887196,44.90695,2091.7,2090.7,4.97440383]
[1617399887397,2.0,2091.6,2090.4,4.98041329]
[1617399887796,2.0,2091.6,2090.5,0.19710749]
[1617399887996,32.0,2091.6,2091.0,2.90695]
[1617399890101,2.90695,2091.1,2091.0,2.90695]
[1617399894915,32.90695,2091.1,2091.0,2.90695]
[1617399895316,89.40205,2091.1,2091.0,2.90695]
[1617399898018,102.40205,2091.1,2091.0,2.90695]
[1617399902023,104.13015,2091.1,2091.0,2.90695]
[1617399902924,47.63505,2091.1,2091.0,2.90695]
[1617399904425,45.90695,2091.1,2091.0,2.90695]
[1617399905026,122.80935,2091.1,2091.0,2.90695]
[1617399905426,124.80935,2091.1,2091.0,2.90695]
[1617399908027,124.80935,2091.1,2091.0,1.97695]
[1617399908827,124.80935,2091.1,2089.9,55.6642]
[1617399909229,124.80935,2091.1,2090.0,0.19729218]
[1617399910230,121.9024,2091.1,2090.5,2.90695]
[1617399911430,46.5184,2091.1,2089.7,4.99464133]
[1617399911831,46.5184,2091.1,2089.6,4.99644707]
[1617399911832,68.325,2090.6,2089.6,4.99644707]
[1617399912030,68.325,2090.6,2089.1,70.7968]
[1617399912031,30.0,2090.5,2089.5,4.99810311]
[1617399912230,30.0,2090.5,2090.2,2.90695]
[1617399913131,30.0,2090.5,2089.5,4.99810311]
[1617399913433,30.0,2090.5,2089.6,0.19739182]
[1617399913834,30.0,2090.5,2089.5,4.99810311]
[1617399914234,30.0,2090.5,2089.9,2.90695]
[1617399914834,2.0,2090.4,2089.4,4.99879865]
[1617399915136,30.0,2090.3,2089.4,4.99879865]
[1617399915337,2.0,2090.2,2089.1,70.7968]
[1617399915536,30.0,2090.1,2089.1,70.7968]
[1617399915736,31.444,2090.1,2089.1,70.7968]
[1617399915937,2.0,2090.0,2089.1,70.7968]
[1617399916137,32.0,2090.0,2089.1,70.7968]
[1617399916336,32.0,2090.0,2089.4,2.90695]
[1617399917242,72.4396,2089.8,2089.4,2.90695]
[1617399917441,102.4396,2089.8,2089.4,2.90695]
[1617399917643,102.4396,2089.8,2088.7,4.99526604]
[1617399918245,102.4396,2089.8,2089.1,2.90695]
[1617399918447,103.4023,2089.8,2089.1,2.90695]
[1617399919750,103.4023,2089.8,2088.4,7.5636955]
[1617399919950,2.0,2089.7,2088.4,7.5636955]
[1617399920150,30.0,2089.6,2088.3,4.99424067]
[1617399920349,31.3814,2089.6,2088.6,2.90695]
[1617399922453,2.90695,2088.7,2088.6,2.90695]
[1617399923853,32.90695,2088.7,2088.6,2.90695]
[1617399924355,32.90695,2088.7,2087.9,4.99117226]
[1617399924558,32.90695,2088.7,2087.8,4.99304968]
[1617399924956,32.90695,2088.7,2087.5,4.99638534]
[1617399925357,64.4004,2088.3,2087.3,4.99886395]
[1617399925557,30.0,2088.2,2087.3,4.99886395]
[1617399926157,30.0,2088.2,2087.2,4.99946385]
[1617399926358,2.90695,2088.0,2087.9,2.90695]
[1617399927161,30.0,2088.2,2087.9,2.90695]
[1617399928160,29.98,2088.2,2087.9,2.90695]
[1617399928359,2.90695,2088.0,2087.9,2.90695]
[1617399932975,32.88695,2088.0,2087.9,2.90695]
[1617399933476,32.86695,2088.0,2087.9,2.90695]
[1617399947895,2.88695,2088.0,2087.9,2.90695]
[1617399948296,98.0752,2088.8,2087.9,2.90695]
[1617399948297,68.0752,2088.8,2087.9,2.90695]
[1617399948695,68.0752,2088.8,2088.7,2.90695]
[1617399948896,2.90695,2088.9,2088.7,2.90695]
[1617399950699,91.5427,2089.4,2088.7,2.90695]
[1617399952602,91.5427,2089.4,2089.2,2.90695]
[1617399954602,2.90695,2089.3,2089.2,2.90695]
[1617399959508,61.5427,2089.4,2089.2,2.90695]
[1617399959715,32.0,2090.3,2089.2,2.90695]
[1617399959909,30.0,2090.3,2089.3,56.336]
[1617399960811,30.0,2090.3,2090.1,2.90695]
[1617399962116,30.9575,2090.3,2090.1,2.90695]
[1617399962313,0.9575,2090.3,2090.1,2.90695]
[1617399962713,2.90695,2090.2,2090.1,2.90695]
[1617399963515,2.90695,2090.2,2088.0,0.9523]
[1617399963914,79.1727,2089.7,2088.0,56.7812]
[1617399964117,30.0,2090.5,2088.1,0.19854488]
[1617399964715,30.0,2090.5,2090.1,2.90695]
[1617399964917,32.0,2091.3,2090.1,2.90695]
[1617399965317,31.2485,2091.5,2090.1,2.90695]
[1617399966721,31.2485,2091.5,2090.7,2.90695]
[1617399967320,30.0,2091.5,2090.7,2.90695]
[1617399967821,0.9701,2091.6,2090.7,2.90695]
[1617399968820,76.7153,2091.7,2091.0,2.90695]
[1617399969823,12.0,2091.7,2091.0,2.90695]
[1617399970826,14.90695,2091.7,2091.0,2.90695]
[1617399971727,3.6704,2091.1,2091.0,2.90695]
[1617399972729,12.0,2091.7,2091.0,2.90695]
[1617399974832,2.90695,2093.2,2091.6,2.90695]
[1617399975232,2.90695,2093.2,2091.6,4.87865]
[1617399975934,2.90695,2093.2,2091.6,5.84015]
[1617399976135,2.90695,2093.2,2093.0,55.5814]
[1617399976537,2.90695,2093.2,2093.0,56.8759]
[1617399976937,2.90695,2093.2,2093.1,2.90695]
[1617399986249,0.9575,2094.0,2093.1,2.90695]
[1617399986450,0.9575,2094.0,2093.1,4.31295]
[1617399986850,0.9575,2094.0,2093.1,1.406]
[1617399987050,13.9739,2094.6,2093.9,2.90695]
[1617399987255,0.9446,2094.6,2093.9,2.90695]
[1617399989053,2.90695,2094.0,2093.9,2.90695]
[1617399991261,0.9683,2094.8,2093.9,2.90695]
[1617399991458,0.9466,2095.3,2093.9,2.90695]
[1617399991661,69.45,2095.4,2093.9,2.90695]
[1617399992959,69.45,2095.4,2094.6,2.90695]
[1617399994364,0.9576,2095.8,2094.6,2.90695]
[1617399994762,60.8427,2095.9,2094.6,2.90695]
[1617399994962,60.8427,2095.9,2095.2,2.90695]
[1617399996964,2.90695,2095.3,2095.2,2.90695]
[1617399999364,0.9425,2096.8,2095.2,2.90695]
[1617399999564,67.2594,2096.8,2095.3,66.4903]
[1617400000164,97.2594,2096.8,2095.3,66.4903]
[1617400000965,97.2594,2096.8,2095.7,2.90695]
[1617400001865,96.3169,2096.8,2095.3,59.39725]
[1617400002967,96.3169,2096.8,2095.5,2.90695]
[1617400005067,96.3169,2096.8,2095.8,2.90695]
[1617400006976,2.90695,2095.9,2095.8,2.90695]
[1617400022291,2.90695,2095.9,2094.5,1.7828]
[1617400022490,2.90695,2095.9,2088.5,5.098]
[1617400022491,2.90695,2095.9,2093.6,1.1]
[1617400022891,2.90695,2095.9,2092.8,2.0448]
[1617400023091,30.0,2095.8,2094.7,2.90695]
[1617400023294,30.9398,2095.8,2092.8,0.9448]
[1617400023693,32.9398,2095.8,2091.7,0.02]
[1617400023892,15.953,2095.7,2091.5,1.1]
[1617400024091,30.0,2095.6,2091.7,1.1]
[1617400024293,2.0,2095.5,2091.7,1.1]
[1617400024495,32.0,2095.4,2091.7,1.1]
[1617400025093,2.90695,2093.4,2093.2,2.90695]
[1617400025493,4.85695,2093.4,2091.7,1.1]
[1617400025894,4.85695,2093.4,2092.1,58.2429]
[1617400026094,30.0,2093.3,2092.1,58.2429]
[1617400026894,30.0,2093.3,2091.0,1.1]
[1617400027096,30.0,2093.3,2090.5,1.1]
[1617400027297,30.0,2093.3,2091.8,2.90695]
[1617400028096,30.0,2093.3,2090.5,1.1]